{"text_format":"1","workbook":"xlsx","n_sheets":2,"sheets":["01.11","BOJE"],"not_rendered":{"charts":0,"images":1,"macros":1,"external_links":0,"defined_names":2,"comments":0,"pivot_tables":0},"unopened":[],"bounds":{"document_bytes":16777216,"sheet_cells":100000,"rows_first":2000,"rows_last":500,"rows_between":2000,"halvings":0,"cell_chars":16384,"cell_head_chars":4096},"cells_cut":0,"cells_raw":0,"read":"whole","date_system":"1900"}

{"sheet":"01.11","index":0,"n_rows":92,"n_cols":28,"rows_kept":92,"cut":false,"hidden":false,"merged":[[91,0,91,1]]}
[null,null,null,null,null,null,null,7.02,8.02,9.02,10.02,11.02,12.02,13.02,14.02,15.02,16.02,17.02,18.02,19.02,20.02,21.02,22.02,23.02,24.02,25.02,26.02]
[41,"07.02.2014",411616,"HZS3567AFV",7,"BK070","CS",7,null,null,null,null,null,null,null,null,null,null,null,null,null,null,null,null,null,null,null,{"$f":"E2-SUM(H2:AA2)","v":0}]
[41,"07.02.2014",444858,"HS3966AF",1,"BK070","L2/VG",1,null,null,null,null,null,null,null,null,null,null,null,null,null,null,null,null,null,null,null,0]
[41,"07.02.2014",444890,"HS3966AF",1,"BK006A","L2/VG",1,null,null,null,null,null,null,null,null,null,null,null,null,null,null,null,null,null,null,null,0]
[41,"07.02.2014",444938,"HS3966AF",5,"BK070","L2/VG",5,null,null,null,null,null,null,null,null,null,null,null,null,null,null,null,null,null,null,null,0]
[41,"07.02.2014",444960,"HZZS3067F",5,"BK006A","L1/VG",5,null,null,null,null,null,null,null,null,null,null,null,null,null,null,null,null,null,null,null,0]
[41,"07.02.2014",444916,"HZZS3067F",5,"BK070","L1/VG",5,null,null,null,null,null,null,null,null,null,null,null,null,null,null,null,null,null,null,null,0]
[41,"07.02.2014",444696,"HZZS3067F",1,"RAL9005","OT",1,null,null,null,null,null,null,null,null,null,null,null,null,null,null,null,null,null,null,null,0]
[41,"07.02.2014",444916,"HZZS3067F",7,"BK070","L1/VG",7,null,null,null,null,null,null,null,null,null,null,null,null,null,null,null,null,null,null,null,0]
[41,"07.02.2014",444748,"HZS4066F",1,"BK070","L1/VG",1,null,null,null,null,null,null,null,null,null,null,null,null,null,null,null,null,null,null,null,0]
[41,"07.02.2014",415278,"HZS4066F",2,"BK070","BA/G2/VG",2,null,null,null,null,null,null,null,null,null,null,null,null,null,null,null,null,null,null,null,0]
[41,"07.02.2014",414188,"HZS4066F",5,"RAL9005","G2/VG",5,null,null,null,null,null,null,null,null,null,null,null,null,null,null,null,null,null,null,null,0]
[41,"07.02.2014",445016,"HZS4066F",15,"BK070","G2/L1",15,null,null,null,null,null,null,null,null,null,null,null,null,null,null,null,null,null,null,null,0]
[41,"07.02.2014",444886,"HZS4066F",24,"BK024","L1/VG",24,null,null,null,null,null,null,null,null,null,null,null,null,null,null,null,null,null,null,null,0]
[41,"07.02.2014",444857,"HZS4066F",10,"BK070","L1/VG",10,null,null,null,null,null,null,null,null,null,null,null,null,null,null,null,null,null,null,null,0]
[41,"07.02.2014",415243,"HZS4066F",1,"BK012","BA/G2/VG",1,null,null,null,null,null,null,null,null,null,null,null,null,null,null,null,null,null,null,null,0]
[41,"07.02.2014",415243,"HZS4066F",9,"BK012","BA/G2/VG",9,null,null,null,null,null,null,null,null,null,null,null,null,null,null,null,null,null,null,null,0]
[41,"07.02.2014",445052,"HZS4066F",23,"BK328","L1/VG",23,null,null,null,null,null,null,null,null,null,null,null,null,null,null,null,null,null,null,null,0]
[41,"07.02.2014",444833,"HZS4066F",1,"BK006A","L1/VG",1,null,null,null,null,null,null,null,null,null,null,null,null,null,null,null,null,null,null,null,0]
[41,"07.02.2014",444833,"HZS4066F",24,"BK006A","L1/VG",24,null,null,null,null,null,null,null,null,null,null,null,null,null,null,null,null,null,null,null,0]
[41,"07.02.2014",444856,"HZS4066F",1,"BK006A","L1/VG",1,null,null,null,null,null,null,null,null,null,null,null,null,null,null,null,null,null,null,null,0]
[41,"07.02.2014",444856,"HZS4066F",10,"BK006A","L1/VG",10,null,null,null,null,null,null,null,null,null,null,null,null,null,null,null,null,null,null,null,0]
[41,"07.02.2014",411665,"HZZS2767F",31,"BK070","L1",31,null,null,null,null,null,null,null,null,null,null,null,null,null,null,null,null,null,null,null,0]
[41,"07.02.2014",444754,"HZZS2767F",22,"BK070","L1/VG",22,null,null,null,null,null,null,null,null,null,null,null,null,null,null,null,null,null,null,null,0]
[41,"07.02.2014",444988,"HZZS2767F",51,"BK012","VS",51,null,null,null,null,null,null,null,null,null,null,null,null,null,null,null,null,null,null,null,0]
[41,"07.02.2014",444755,"ZOS2467",2,"BK036","L1/VG",2,null,null,null,null,null,null,null,null,null,null,null,null,null,null,null,null,null,null,null,0]
[41,"07.02.2014",444755,"ZOS2467",101,"BK070","L1/VG",96,5,null,null,null,null,null,null,null,null,null,null,null,null,null,null,null,null,null,null,0]
[41,"10.02.2014",444755,"ZOS2467",70,"BK070","L1/VG",null,70,null,null,null,null,null,null,null,null,null,null,null,null,null,null,null,null,null,null,0]
[41,"10.02.2014",444755,"ZOS2467",103,"BK070","L1/VG",null,103,null,null,null,null,null,null,null,null,null,null,null,null,null,null,null,null,null,null,0]
[41,"10.02.2014",444755,"ZOS2467",1,"BK070","L1/VG",null,1,null,null,null,null,null,null,null,null,null,null,null,null,null,null,null,null,null,null,0]
[41,"10.02.2014",444755,"ZOS2467",59,"BK070","L1/VG",null,59,null,null,null,null,null,null,null,null,null,null,null,null,null,null,null,null,null,null,0]
[41,"10.02.2014",444755,"ZOS2467",5,"BK070","L1/VG",null,5,null,null,null,null,null,null,null,null,null,null,null,null,null,null,null,null,null,null,0]
[41,"10.02.2014",444755,"ZOS2467",24,"BK070","L1/VG",null,24,null,null,null,null,null,null,null,null,null,null,null,null,null,null,null,null,null,null,0]
[41,"10.02.2014",444755,"ZOS2467",35,"BK070","L1/VG",null,35,null,null,null,null,null,null,null,null,null,null,null,null,null,null,null,null,null,null,0]
[41,"10.02.2014",444755,"ZOS2467",58,"BK070","L1/VG",null,58,null,null,null,null,null,null,null,null,null,null,null,null,null,null,null,null,null,null,0]
[41,"11.02.2014",444866,"ZOS2467",53,"BK070","L1/VG",null,null,53,null,null,null,null,null,null,null,null,null,null,null,null,null,null,null,null,null,0]
[41,"11.02.2014",444866,"ZOS2467",48,"BK070","L1/VG",null,null,48,null,null,null,null,null,null,null,null,null,null,null,null,null,null,null,null,null,0]
[41,"11.02.2014",444866,"ZOS2467",181,"BK070","L1/VG",null,null,181,null,null,null,null,null,null,null,null,null,null,null,null,null,null,null,null,null,0]
[41,"11.02.2014",412390,"ZOS2467",24,"BK304","L1/VG",null,null,24,null,null,null,null,null,null,null,null,null,null,null,null,null,null,null,null,null,0]
[41,"11.02.2014",444780,"ZOS2467",48,"BK070","L1/VG",null,null,48,null,null,null,null,null,null,null,null,null,null,null,null,null,null,null,null,null,0]
[41,"11.02.2014",411603,"HZZS2967F",6,"BK070",null,null,null,6,null,null,null,null,null,null,null,null,null,null,null,null,null,null,null,null,null,0]
[41,"12.02.2014",411603,"HZZS2967F",207,"BK070",null,null,null,null,207,null,null,null,null,null,null,null,null,null,null,null,null,null,null,null,null,0]
[41,"12.02.2014",445026,"HZZS2967F",179,"BK070",null,null,null,null,153,26,null,null,null,null,null,null,null,null,null,null,null,null,null,null,null,0]
[41,"13.02.2014",445026,"HZZS2967F",180,"BK070",null,null,null,null,null,180,null,null,null,null,null,null,null,null,null,null,null,null,null,null,null,0]
[41,"13.02.2014",414133,"ZOF2467C",1,"BK070","G2/VG",null,null,null,null,1,null,null,null,null,null,null,null,null,null,null,null,null,null,null,null,0]
[41,"13.02.2014",414133,"ZOF2467C",30,"BK070","G2/VG",null,null,null,null,30,null,null,null,null,null,null,null,null,null,null,null,null,null,null,null,0]
[41,"13.02.2014",444745,"ZOF2467C",97,"BK070","G2/L1/VG",null,null,null,null,97,null,null,null,null,null,null,null,null,null,null,null,null,null,null,null,0]
[41,"13.02.2014",444745,"ZOF2467C",30,"BK070","G2/L1/VG",null,null,null,null,26,4,null,null,null,null,null,null,null,null,null,null,null,null,null,null,0]
[41,"14.02.2014",444745,"ZOF2467C",3,"BK070","G2/L1/VG",null,null,null,null,null,3,null,null,null,null,null,null,null,null,null,null,null,null,null,null,0]
[41,"14.02.2014",444745,"ZOF2467C",21,"BK070","G2/L1/VG",null,null,null,null,null,21,null,null,null,null,null,null,null,null,null,null,null,null,null,null,0]
[41,"14.02.2014",444745,"ZOF2467C",1,"BK070","G2/L1/VG",null,null,null,null,null,1,null,null,null,null,null,null,null,null,null,null,null,null,null,null,0]
[41,"14.02.2014",444745,"ZOF2467C",1,"BK070","G2/L1/VG",null,null,null,null,null,1,null,null,null,null,null,null,null,null,null,null,null,null,null,null,0]
[41,"14.02.2014",444745,"ZOF2467C",34,"BK070","G2/L1/VG",null,null,null,null,null,34,null,null,null,null,null,null,null,null,null,null,null,null,null,null,0]
[41,"14.02.2014",445063,"ZOF2467C",30,"BK070","CS/G2",null,null,null,null,null,30,null,null,null,null,null,null,null,null,null,null,null,null,null,null,0]
[41,"14.02.2014",444839,"ZOF2467C",3,"BK006A","G2/L1/VG",null,null,null,null,null,3,null,null,null,null,null,null,null,null,null,null,null,null,null,null,0]
[41,"14.02.2014",444839,"ZOF2467C",2,"BK006A","G2/L1/VG",null,null,null,null,null,2,null,null,null,null,null,null,null,null,null,null,null,null,null,null,0]
[41,"14.02.2014",444839,"ZOF2467C",5,"BK006A","G2/L1/VG",null,null,null,null,null,5,null,null,null,null,null,null,null,null,null,null,null,null,null,null,0]
[41,"14.02.2014",444839,"ZOF2467C",4,"BK006A","G2/L1/VG",null,null,null,null,null,4,null,null,null,null,null,null,null,null,null,null,null,null,null,null,0]
[41,"14.02.2014",444839,"ZOF2467C",2,"BK006A","G2/L1/VG",null,null,null,null,null,2,null,null,null,null,null,null,null,null,null,null,null,null,null,null,0]
[41,"14.02.2014",444815,"ZOF2467C",49,"BK070","G2/L1/VG",null,null,null,null,null,49,null,null,null,null,null,null,null,null,null,null,null,null,null,null,0]
[41,"14.02.2014",444745,"ZOF2467C",49,"BK070","G2/L1/VG",null,null,null,null,null,49,null,null,null,null,null,null,null,null,null,null,null,null,null,null,0]
[41,"14.02.2014",444772,"ZOF2467CB",40,"BK070","L2/VG",null,null,null,null,null,40,null,null,null,null,null,null,null,null,null,null,null,null,null,null,0]
[41,"14.02.2014",444881,"ZOF2467CB",25,"BK006A","L2/VG",null,null,null,null,null,25,null,null,null,null,null,null,null,null,null,null,null,null,null,null,0]
[41,"14.02.2014",444881,"ZOF2467CB",38,"BK006A","L2/VG",null,null,null,null,null,38,null,null,null,null,null,null,null,null,null,null,null,null,null,null,0]
[41,"14.02.2014",444881,"ZOF2467CB",1,"BK006A","L2/VG",null,null,null,null,null,1,null,null,null,null,null,null,null,null,null,null,null,null,null,null,0]
[41,"14.02.2014",444881,"ZOF2467CB",5,"BK006A","L2/VG",null,null,null,null,null,5,null,null,null,null,null,null,null,null,null,null,null,null,null,null,{"$f":"E66-SUM(H66:AA66)","v":0}]
[41,"14.02.2014",444879,"HS3966",121,"BK006A","G2/L1/VG",null,null,null,null,null,43,78,null,null,null,null,null,null,null,null,null,null,null,null,null,0]
[41,"18.02.2014",444959,"HS3966F",24,"BK006A","G2/L1/VG",null,null,null,null,null,null,24,null,null,null,null,null,null,null,null,null,null,null,null,null,0]
[41,"18.02.2014",444783,"HS3966",49,"BK006A","G2/L1/VG",null,null,null,null,null,null,49,null,null,null,null,null,null,null,null,null,null,null,null,null,0]
[41,"18.02.2014",444783,"HS3966",24,"BK006A","G2/L1/VG",null,null,null,null,null,null,24,null,null,null,null,null,null,null,null,null,null,null,null,null,0]
[41,"18.02.2014",445038,"HS3966",21,"BK006A","G2/L1/VG",null,null,null,null,null,null,21,null,null,null,null,null,null,null,null,null,null,null,null,null,0]
[41,"18.02.2014",444782,"HS3966",48,"BK070","G2/L1/VG",null,null,null,null,null,null,48,null,null,null,null,null,null,null,null,null,null,null,null,null,0]
[41,"19.02.2014",444937,"HS3966",20,"BK070","G2/L1/VG",null,null,null,null,null,null,20,null,null,null,null,null,null,null,null,null,null,null,null,null,0]
[41,"19.02.2014",412351,"HS3961",90,"BK070","G2/L1/VG",null,null,null,null,null,null,90,null,null,null,null,null,null,null,null,null,null,null,null,null,0]
[41,"19.02.2014",445083,"HS3966",30,"RAL9005","G2/L1/VG",null,null,null,null,null,null,6,24,null,null,null,null,null,null,null,null,null,null,null,null,0]
[41,"19.02.2014",445062,"HZZS3067F",4,"BK070","OT",null,null,null,null,null,null,null,4,null,null,null,null,null,null,null,null,null,null,null,null,0]
[41,"19.02.2014",445062,"HZZS3067F",6,"BK070","OT",null,null,null,null,null,null,null,6,null,null,null,null,null,null,null,null,null,null,null,null,0]
[41,"19.02.2014",444709,"HZZS3067F",24,"RAL9005","OT",null,null,null,null,null,null,null,24,null,null,null,null,null,null,null,null,null,null,null,null,0]
[41,"19.02.2014",444708,"HZZS3067F",251,"BK024","OT",null,null,null,null,null,null,null,251,null,null,null,null,null,null,null,null,null,null,null,null,0]
[41,"20.02.2014",444721,"HZZS3067F",24,"BK304","OT",null,null,null,null,null,null,null,24,null,null,null,null,null,null,null,null,null,null,null,null,0]
[41,"20.02.2014",444692,"HZZS3067F",24,"BK304","OT",null,null,null,null,null,null,null,24,null,null,null,null,null,null,null,null,null,null,null,null,0]
[41,"21.02.2014",444916,"HZZS3067F",12,"BK070","L1/VG",null,null,null,null,null,null,null,3,9,null,null,null,null,null,null,null,null,null,null,null,0]
[41,"21.02.2014",444916,"HZZS3067F",43,"BK070","L1/VG",null,null,null,null,null,null,null,null,43,null,null,null,null,null,null,null,null,null,null,null,0]
[41,"21.02.2014",445016,"HZS4066F",97,"BK070","G2/L1",null,null,null,null,null,null,null,null,97,null,null,null,null,null,null,null,null,null,null,null,0]
[41,"21.02.2014",414188,"HZS4066F",19,"RAL9005","G2/VG",null,null,null,null,null,null,null,null,19,null,null,null,null,null,null,null,null,null,null,null,0]
[41,"21.02.2014",445052,"HZS4066F",22,"BK328","L1/VG",null,null,null,null,null,null,null,null,22,null,null,null,null,null,null,null,null,null,null,null,0]
[41,"21.02.2014",444754,"HZZS2767F",50,"BK070","L1/VG",null,null,null,null,null,null,null,null,50,null,null,null,null,null,null,null,null,null,null,null,0]
[41,"24.02.2014",444854,"HZF3767EFV",43,"BK006A","L2/VG",null,null,null,null,null,null,null,null,43,null,null,null,null,null,null,null,null,null,null,null,0]
[41,"24.02.2014",444854,"HZF3767EFV",2,"BK006A","L2/VG",null,null,null,null,null,null,null,null,2,null,null,null,null,null,null,null,null,null,null,null,0]
[41,"24.02.2014",444770,"HZF3767EFV",40,"BK070","L2/VG",null,null,null,null,null,null,null,null,40,null,null,null,null,null,null,null,null,null,null,null,0]
[41,"24.02.2014",445015,"HZF3767AF",44,"BK006A","G2/L2",null,null,null,null,null,null,null,null,35,9,null,null,null,null,null,null,null,null,null,null,{"$f":"E91-SUM(H91:AA91)","v":0}]
["Uneti ogranicenje",null,360,null,null,null,null,{"$f":"SUM(H2:H91)","v":360},360,360,360,360,360,360,360,360,9,0,0,0,0,0,0,0,0,0,0]

{"sheet":"BOJE","index":1,"n_rows":17,"n_cols":9,"rows_kept":17,"cut":false,"hidden":false,"merged":[]}
[]
[null,null,"BojeID","Pozadina","Tekst"]
[null,null,"BK070",{"$f":"Pozadina(tblBOJE[[#This Row],[BojeID]])","v":16777215},0,null,null,null,"tblBOJE   - izdvojena tabela sa šiframa i definicijama boja koje se koriste"]
[null,null,"BK006A",{"$f":"Pozadina(tblBOJE[[#This Row],[BojeID]])","v":8421504},16777215,null,null,null," -Kada god se dodaje nova, prvo se ovde zavodi!"]
[null,null,"RAL9005",{"$f":"Pozadina(tblBOJE[[#This Row],[BojeID]])","v":0},16777215,null,null,null," -I unos u planer je ograničen validacijom."]
[null,null,"BK304",{"$f":"Pozadina(tblBOJE[[#This Row],[BojeID]])","v":192},16777215,null,null,null," -Lista boja ili uzoraka se slobodno proširuje počev od prvog praznog reda; ALI!"]
[null,null,"BK024",{"$f":"Pozadina(tblBOJE[[#This Row],[BojeID]])","v":65535},0]
[null,null,"BK328",{"$f":"Pozadina(tblBOJE[[#This Row],[BojeID]])","v":255},0,null,null,null,"!U PROGRAMU SE PODRAZUMEVA DA JE SVAKA BOJA UPOTREBLJENA MAKAR JEDANPUT!"]
[null,null,"BK880",{"$f":"Pozadina(tblBOJE[[#This Row],[BojeID]])","v":13158},16777215]
[null,null,"BK012",{"$f":"Pozadina(tblBOJE[[#This Row],[BojeID]])","v":14277081},0,null,null,null,"Ako naiđe na boju koja ne postoji u planeru, program prekida na tom mestu."]
[null,null,"BK879",{"$f":"Pozadina(tblBOJE[[#This Row],[BojeID]])","v":39372},0,null,null,null,"Ovo nema posledice za novo-ubačene boje (na dnu tabele) ali, ako se radi o"]
[null,null,"BK035A",{"$f":"Pozadina(tblBOJE[[#This Row],[BojeID]])","v":13369548},16777215,null,null,null,"nekoj iz sredine, planer će ostati delimično obojen."]
[null,null,"BK036A",{"$f":"Pozadina(tblBOJE[[#This Row],[BojeID]])","v":682978},0]
[null,null,"BK034A",{"$f":"Pozadina(tblBOJE[[#This Row],[BojeID]])","v":5296274},0,null,null,null,"Koristi na sopstvenu odgovornost!"]
[null,null,"BK049",{"$f":"Pozadina(tblBOJE[[#This Row],[BojeID]])","v":49407},0]
[null,null,"BK036",{"$f":"Pozadina(tblBOJE[[#This Row],[BojeID]])","v":682978},0]
[null,null,"BK915",{"$f":"Pozadina(tblBOJE[[#This Row],[BojeID]])","v":5855577},0]